{"text_format":"3","workbook":"xlsx","n_sheets":3,"sheets":["Έναρξη","Μηνιαίος φοιτητ. προϋπολογισμός","υπολογ_γραφήματος"],"not_rendered":{"charts":4,"defined_names":19},"read":"whole","date_system":"1900"}

{"sheet":"Έναρξη","index":0,"n_rows":7,"n_cols":2,"rows_kept":7}
[null,"ΠΛΗΡΟΦΟΡΙΕΣ ΓΙΑ ΑΥΤΟ ΤΟ ΠΡΟΤΥΠΟ"]
[null,"Χρησιμοποιήστε το φύλλο εργασίας \"Μηνιαίος φοιτητικός προϋπολογισμός\", για να παρακολουθείτε τα έσοδα και έξοδά σας, όπως και την ταμειακή ροή."]
[null,"Πληκτρολογήστε τα μηνιαία έσοδα και έξοδα, για να υπολογίσετε το σύνολό τους."]
[null,"Η ταμειακή ροή υπολογίζεται αυτόματα και το γράφημα ταμειακής ροής ενημερώνεται για εσάς."]
[null,"Επιλέξτε το ρυθμιστικό για να προβάλετε τα έσοδα, έξοδα και τα γραφήματα ταμειακής ροής για κάποιο μήνα ή έτος."]
[null,"Σημείωση: "]
[null,"Στη στήλη A του φύλλου εργασίας παρέχονται πρόσθετες οδηγίες. Αυτό το κείμενο είναι σκόπιμα κρυφό. Για να καταργήσετε το κείμενο, επιλέξτε τη στήλη A και, στη συνέχεια, πατήστε το πλήκτρο DELETE. Για να εμφανίσετε το κείμενο, επιλέξτε τη στήλη A και, στη συνέχεια, αλλάξτε το χρώμα γραμματοσειράς."]

{"sheet":"Μηνιαίος φοιτητ. προϋπολογισμός","index":1,"n_rows":72,"n_cols":16,"rows_kept":72,"merged":[[5,1,14,3],[5,4,14,11],[5,12,13,15],[15,1,19,15],[20,1,21,15]]}
["Δημιουργήστε έναν Μηνιαίο φοιτητικό προϋπολογισμό σε αυτό το φύλλο εργασίας. Ο τίτλος αυτού του φύλλου εργασίας βρίσκεται στο κελί στα δεξιά και στο κελί B1. Σε διάφορα κελιά σε αυτή τη στήλη βρίσκονται χρήσιμες οδηγίες για τον τρόπο χρήσης αυτού του φύλλου εργασίας. Η επόμενη οδηγία βρίσκεται στο κελί A4.","Μηνιαίος φοιτητικός προϋπολογισμός"]
[]
[]
["Η ετικέτα \"Έσοδα\" βρίσκεται στο κελί στα δεξιά, η ετικέτα \"Έξοδα\" βρίσκεται στο κελί Ε4 και η ετικέτα \"Ταμειακή ροή\" στο κελί L4.",{"$f":"υπολογ_γραφήματος!$D$6","v":"έσοδα ετοσ:"},null,null,{"$f":"υπολογ_γραφήματος!$D$7","v":"έξοδα ετοσ:"},{"$nulls":6},{"$f":"υπολογ_γραφήματος!$D$8","v":"Ταμειακή ροή ετοσ:"}]
["Τα \"Έσοδα\" βρίσκονται στο κελί στα δεξιά και ενημερώνονται αυτόματα, τα \"Έξοδα\" βρίσκονται στο κελί E5 και η \"Ταμειακή ροή\" στο κελί L5.",{"$f":"\" \"&υπολογ_γραφήματος!$F$6","v":{"$error":"#VALUE!"}},null,null,{"$f":"\" \"&υπολογ_γραφήματος!$F$7","v":{"$error":"#VALUE!"}},{"$nulls":6},{"$f":"\" \"&υπολογ_γραφήματος!$F$8","v":" 169 €"}]
["Το γράφημα δακτυλίου που εμφανίζει την σύνοψη εσόδων βρίσκεται στα δεξιά, η σύνοψη εξόδων βρίσκεται στο κελί Ε6 και ένα γράφημα ράβδων που δείχνει τη θετική και αρνητική ταμειακή ροή βρίσκεται στο κελί Μ6. Όλες οι τιμές ανανεώνονται αυτόματα. Η επόμενη οδηγία βρίσκεται στο κελί A17.","Το γράφημα δακτυλίου που εμφανίζει τη σύνοψη εσόδων για τον επιλεγμένο μήνα ή έτος βρίσκεται σε αυτό το κελί.",null,null,"Το γράφημα δακτυλίου που εμφανίζει τη σύνοψη εξόδων για τον επιλεγμένο μήνα ή έτος βρίσκεται σε αυτό το κελί.",{"$nulls":7},"Το γράφημα ράβδων που εμφανίζει τη θετική και αρνητική ταμειακή ροή για τον επιλεγμένο μήνα ή έτος βρίσκεται σε αυτό το κελί."]
{"$rows_empty":9}
[null,"Το γράφημα γραμμών που εμφανίζει την ταμειακή ροή για τον επιλεγμένο μήνα ή έτος βρίσκεται σε αυτό το κελί."]
["Το γράφημα γραμμών για την ταμειακή ροή βρίσκεται στο κελί στα δεξιά. Η επόμενη οδηγία βρίσκεται στο κελί A21."]
[]
[]
[]
["Επιλέξτε το ρυθμιστικό στα δεξιά, για να αποκτήσετε μηνιαία ή ετήσια δεδομένα και γραφήματα σχετικά με τα έσοδα, τα έξοδα και την ταμειακή ροή. Η επόμενη οδηγία βρίσκεται στο κελί A25.","Το ρυθμιστικό περιέχεται σε αυτό το κελί."]
[]
[]
[]
["Επιλέξτε τον μήνα στο κελί στα δεξιά. Πατήστε ALT+ΚΑΤΩ ΒΕΛΟΣ για να δείτε επιλογές και μετά πατήστε ΚΑΤΩ ΒΕΛΟΣ και ENTER για να κάνετε μια επιλογή.","ιανουαρίου"]
["Η επιλεγμένη περίοδος ενημερώνεται αυτόματα στο κελί P26.",{"$nulls":14},{"$f":"ΕπιλεγμένηΠερίοδος","v":{"$error":"#VALUE!"}}]
["Οι ετικέτες που βρίσκονται σε αυτή τη γραμμή είναι: \"Μηνιαία έσοδα μετά εξόδων\" στο κελί στα δεξιά, \"Μήνες\" στα κελιά C27 έως N27, \"Έτος\" στο κελί O27 και \"Ποσοστό αύξησης\" στο κελί P27.","Μηνιαία μετρητά μετά τα έξοδα",{"$f":"ΠρώτοςΜήνας","v":{"$error":"#VALUE!"}},{"$f":"ΕπόμενοςΜήνας","v":{"$error":"#VALUE!"}},{"$error":"#VALUE!"},{"$error":"#VALUE!"},{"$error":"#VALUE!"},{"$error":"#VALUE!"},{"$error":"#VALUE!"},{"$error":"#VALUE!"},{"$error":"#VALUE!"},{"$error":"#VALUE!"},{"$error":"#VALUE!"},{"$error":"#VALUE!"},"ΕΤΟΣ  ","% INC "]
["Η ετικέτα \"Ταμειακή ροή\" βρίσκεται στο κελί στα δεξιά. Η ταμειακή ροή για κάθε μήνα υπολογίζεται αυτόματα και εμφανίζεται στα κελιά C28 έως N28, το ετήσιο ποσό εμφανίζεται στο κελί O28, και το ποσοστό αύξησης στο κελί P28. Το γράφημα sparkline ενημερώνεται αυτόματα στο κελί Q28.","Ταμειακή ροή",{"$f":"C37-C72","v":{"v":169,"d":"169 "}},{"v":69,"d":"69 "},{"v":192,"d":"192 "},{"v":199,"d":"199 "},{"v":204,"d":"204 "},{"v":-771,"d":"(771)"},{"v":124,"d":"124 "},{"v":154,"d":"154 "},{"v":-721,"d":"(721)"},{"v":109,"d":"109 "},{"v":34,"d":"34 "},{"v":-61,"d":"(61)"},{"$f":"SUM(C28:N28)","v":{"v":-299,"d":"(299)"}},{"$f":"INDEX($C28:$O28,,ΣτήληΕπιλεγμένηςΠεριόδου)/INDEX($C$37:$O$37,,ΣτήληΕπιλεγμένηςΠεριόδου)","v":{"$error":"#VALUE!"}}]
["Η ετικέτα \" Αθροιστική ταμειακή ροή\" βρίσκεται στο κελί στα δεξιά. Η αθροιστική ταμειακή ροή για κάθε μήνα υπολογίζεται αυτόματα και εμφανίζεται στα κελιά C29 έως N29, το ετήσιο ποσό εμφανίζεται στο κελί O29, και το ποσοστό αύξησης στο κελί P29. Το γράφημα sparkline ενημερώνεται αυτόματα στο κελί Q29. Η επόμενη οδηγία βρίσκεται στο κελί A31.","Αθροιστική ταμειακή ροή",{"$f":"SUM($C$28:C$28)","v":{"v":169,"d":"169 "}},{"$f":"SUM($C$28:D$28)","v":{"v":238,"d":"238 "}},{"$f":"SUM($C$28:E$28)","v":{"v":430,"d":"430 "}},{"$f":"SUM($C$28:F$28)","v":{"v":629,"d":"629 "}},{"$f":"SUM($C$28:G$28)","v":{"v":833,"d":"833 "}},{"$f":"SUM($C$28:H$28)","v":{"v":62,"d":"62 "}},{"$f":"SUM($C$28:I$28)","v":{"v":186,"d":"186 "}},{"$f":"SUM($C$28:J$28)","v":{"v":340,"d":"340 "}},{"$f":"SUM($C$28:K$28)","v":{"v":-381,"d":"(381)"}},{"$f":"SUM($C$28:L$28)","v":{"v":-272,"d":"(272)"}},{"$f":"SUM($C$28:M$28)","v":{"v":-238,"d":"(238)"}},{"$f":"SUM($C$28:N$28)","v":{"v":-299,"d":"(299)"}}]
[]
["Η ετικέτα \"Μηνιαία έσοδα\" βρίσκεται στο κελί στα δεξιά, οι \"Μήνες\" βρίσκονται στα κελιά C31 έως N31, το \"Έτος\" στο κελί O31 και η ετικέτα \"Ποσοστό αύξησης\" στο κελί P31. Καταχωρήστε στοιχεία μηνιαίων εσόδων στα κελιά B32 έως B36 και μηνιαία ποσά στα κελιά C32 τα έως N36. Το ετήσιο εισόδημα υπολογίζεται αυτόματα και εμφανίζεται στα κελιά O32 έως O36 και το ποσοστό αύξησης στα κελιά P32 έως P36. Η επόμενη οδηγία βρίσκεται στο κελί A37.","ΜΗΝΙΑΙΑ ΕΣΟΔΑ",{"$f":"ΠρώτοςΜήνας","v":{"$error":"#VALUE!"}},{"$f":"ΕπόμενοςΜήνας","v":{"$error":"#VALUE!"}},{"$error":"#VALUE!"},{"$error":"#VALUE!"},{"$error":"#VALUE!"},{"$error":"#VALUE!"},{"$error":"#VALUE!"},{"$error":"#VALUE!"},{"$error":"#VALUE!"},{"$error":"#VALUE!"},{"$error":"#VALUE!"},{"$error":"#VALUE!"},"ΕΤΟΣ  ","% INC "]
[null,"Οικονομική Βοήθεια (επιχορηγήσεις υποτροφίες, δάνεια) που δόθηκε σε εσάς",0,0,750,750,750,750,750,750,750,750,750,750,{"$f":"SUM(C32:N32)","v":{"v":7500,"d":"7,500"}},{"$f":"INDEX($C32:$O32,,ΣτήληΕπιλεγμένηςΠεριόδου)/INDEX($C$37:$O$37,,ΣτήληΕπιλεγμένηςΠεριόδου)","v":{"$error":"#VALUE!"}}]
[null,"Μισθοί μετά φόρων από εργασία",450,450,450,450,450,450,450,450,550,350,350,350,{"v":5200,"d":"5,200"},{"$f":"INDEX($C33:$O33,,ΣτήληΕπιλεγμένηςΠεριόδου)/INDEX($C$37:$O$37,,ΣτήληΕπιλεγμένηςΠεριόδου)","v":{"$error":"#VALUE!"}}]
[null,"Οικονομική βοήθεια από την οικογένεια",200,200,{"v":1000,"d":"1,000"},350,350,350,350,350,350,350,350,350,{"v":4550,"d":"4,550"},{"$f":"INDEX($C34:$O34,,ΣτήληΕπιλεγμένηςΠεριόδου)/INDEX($C$37:$O$37,,ΣτήληΕπιλεγμένηςΠεριόδου)","v":{"$error":"#VALUE!"}}]
[null,"Αναλήψεις από αποταμιεύσεις",500,350,150,0,0,0,0,0,0,0,0,0,{"v":1000,"d":"1,000"},{"$f":"INDEX($C35:$O35,,ΣτήληΕπιλεγμένηςΠεριόδου)/INDEX($C$37:$O$37,,ΣτήληΕπιλεγμένηςΠεριόδου)","v":{"$error":"#VALUE!"}}]
[null,"Άλλο (επίδομα διατροφής, κοινωνική αρωγή, δώρα κλπ.)",75,75,75,75,75,75,75,75,75,75,75,75,900,{"$f":"INDEX($C36:$O36,,ΣτήληΕπιλεγμένηςΠεριόδου)/INDEX($C$37:$O$37,,ΣτήληΕπιλεγμένηςΠεριόδου)","v":{"$error":"#VALUE!"}}]
["Η ετικέτα \"Συνολικά έσοδα\" βρίσκεται στο κελί στα δεξιά. Το συνολικό εισόδημα υπολογίζεται αυτόματα και εμφανίζεται στα κελιά C37 έως N37, το ετήσιο εισόδημα εμφανίζεται στο κελί O37, και το ποσοστό αύξησης στο κελί P37. Το γράφημα sparkline ενημερώνεται αυτόματα στο κελί Q37. Η επόμενη οδηγία βρίσκεται στο κελί A39.","ΣΥΝΟΛΙΚΑ ΕΣΟΔΑ",{"$f":"SUM(C32:C36)","v":{"v":1225,"d":"1,225"}},{"v":1075,"d":"1,075"},{"v":2425,"d":"2,425"},{"v":1625,"d":"1,625"},{"v":1625,"d":"1,625"},{"v":1625,"d":"1,625"},{"v":1625,"d":"1,625"},{"v":1625,"d":"1,625"},{"v":1725,"d":"1,725"},{"v":1525,"d":"1,525"},{"v":1525,"d":"1,525"},{"v":1525,"d":"1,525"},{"v":19150,"d":"19,150"},{"$f":"INDEX($C37:$O37,,ΣτήληΕπιλεγμένηςΠεριόδου)/INDEX($C$37:$O$37,,ΣτήληΕπιλεγμένηςΠεριόδου)","v":{"$error":"#VALUE!"}}]
[]
["Η ετικέτα \"Μηνιαία έσοδα\" βρίσκεται στο κελί στα δεξιά, οι \"Μήνες\" βρίσκονται στα κελιά C39 έως N39, το \"Έτος\" στο κελί O39 και η ετικέτα \"Ποσοστό αύξησης\" στο κελί P39.","ΜΗΝΙΑΙΑ ΕΞΟΔΑ",{"$f":"ΠρώτοςΜήνας","v":{"$error":"#VALUE!"}},{"$f":"ΕπόμενοςΜήνας","v":{"$error":"#VALUE!"}},{"$error":"#VALUE!"},{"$error":"#VALUE!"},{"$error":"#VALUE!"},{"$error":"#VALUE!"},{"$error":"#VALUE!"},{"$error":"#VALUE!"},{"$error":"#VALUE!"},{"$error":"#VALUE!"},{"$error":"#VALUE!"},{"$error":"#VALUE!"},"ΕΤΟΣ  ","% INC "]
["Εισαγάγετε ή τροποποιήστε ένα στοιχείο εξόδων στο κελί δεξιά και τα μηνιαία ποσά στα κελιά C40 έως N43. Το ετήσιο εισόδημα υπολογίζεται αυτόματα και εμφανίζεται στα κελιά O40 έως O43 και το ποσοστό αύξησης στα κελιά P40 έως P43. Το γράφημα sparkline ενημερώνεται αυτόματα στο κελί Q40. Η επόμενη οδηγία βρίσκεται στο κελί A45.","Στέγαση και σίτιση",{"$f":"SUM(C41:C43)","v":565},565,565,565,565,565,565,565,565,565,565,565,{"$f":"SUM(C40:N40)","v":{"v":6780,"d":"6,780"}},{"$f":"INDEX($C40:$O40,,ΣτήληΕπιλεγμένηςΠεριόδου)/INDEX($C$72:$O$72,,ΣτήληΕπιλεγμένηςΠεριόδου)","v":{"$error":"#VALUE!"}}]
[null,null,315,315,315,315,315,315,315,315,315,315,315,315,{"$f":"SUM(C41:N41)","v":{"v":3780,"d":"3,780"}},{"$f":"INDEX($C41:$O41,,ΣτήληΕπιλεγμένηςΠεριόδου)/INDEX($C$72:$O$72,,ΣτήληΕπιλεγμένηςΠεριόδου)","v":{"$error":"#VALUE!"}}]
[null,null,200,200,200,200,200,200,200,200,200,200,200,200,{"$f":"SUM(C42:N42)","v":{"v":2400,"d":"2,400"}},{"$f":"INDEX($C42:$O42,,ΣτήληΕπιλεγμένηςΠεριόδου)/INDEX($C$72:$O$72,,ΣτήληΕπιλεγμένηςΠεριόδου)","v":{"$error":"#VALUE!"}}]
[null,null,50,50,50,50,50,50,50,50,50,50,50,50,{"$f":"SUM(C43:N43)","v":600},{"$f":"INDEX($C43:$O43,,ΣτήληΕπιλεγμένηςΠεριόδου)/INDEX($C$72:$O$72,,ΣτήληΕπιλεγμένηςΠεριόδου)","v":{"$error":"#VALUE!"}}]
[]
["Εισαγάγετε ή τροποποιήστε ένα στοιχείο εξόδων στο κελί δεξιά και τα μηνιαία ποσά στα κελιά C45 έως N47. Το ετήσιο ποσό υπολογίζεται αυτόματα και εμφανίζεται στα κελιά Ο45 έως Ο47 και το ποσοστό αύξησης στα κελιά Ρ45 έως Ρ47. Το γράφημα sparkline ενημερώνεται αυτόματα στο κελί Q45. Η επόμενη οδηγία βρίσκεται στο κελί A49.","Δίδακτρα και χρεώσεις",{"$f":"SUM(C46:C47)","v":0},0,750,0,0,650,0,0,650,0,0,0,{"$f":"SUM(C45:N45)","v":{"v":2050,"d":"2,050"}},{"$f":"INDEX($C45:$O45,,ΣτήληΕπιλεγμένηςΠεριόδου)/INDEX($C$72:$O$72,,ΣτήληΕπιλεγμένηςΠεριόδου)","v":{"$error":"#VALUE!"}}]
[null,null,0,0,500,0,0,500,0,0,500,0,0,0,{"$f":"SUM(C46:N46)","v":{"v":1500,"d":"1,500"}},{"$f":"INDEX($C46:$O46,,ΣτήληΕπιλεγμένηςΠεριόδου)/INDEX($C$72:$O$72,,ΣτήληΕπιλεγμένηςΠεριόδου)","v":{"$error":"#VALUE!"}}]
[null,null,0,0,250,0,0,150,0,0,150,0,0,0,{"$f":"SUM(C47:N47)","v":550},{"$f":"INDEX($C47:$O47,,ΣτήληΕπιλεγμένηςΠεριόδου)/INDEX($C$72:$O$72,,ΣτήληΕπιλεγμένηςΠεριόδου)","v":{"$error":"#VALUE!"}}]
[]
["Εισαγάγετε ή τροποποιήστε ένα στοιχείο εξόδων στο κελί δεξιά και τα μηνιαία ποσά στα κελιά C49 έως N51. Το ετήσιο ποσό υπολογίζεται αυτόματα και εμφανίζεται στα κελιά Ο49 έως Ο51 και το ποσοστό αύξησης στα κελιά Ρ49 έως Ρ51. Το γράφημα sparkline ενημερώνεται αυτόματα στο κελί Q49. Η επόμενη οδηγία βρίσκεται στο κελί A53.","Βιβλία και προμήθειες",{"$f":"SUM(C50:C51)","v":0},0,325,20,20,325,10,10,400,15,15,15,{"$f":"SUM(C49:N49)","v":{"v":1155,"d":"1,155"}},{"$f":"INDEX($C49:$O49,,ΣτήληΕπιλεγμένηςΠεριόδου)/INDEX($C$72:$O$72,,ΣτήληΕπιλεγμένηςΠεριόδου)","v":{"$error":"#VALUE!"}}]
[null,null,0,0,225,0,0,275,0,0,325,0,0,0,{"$f":"SUM(C50:N50)","v":825},{"$f":"INDEX($C50:$O50,,ΣτήληΕπιλεγμένηςΠεριόδου)/INDEX($C$72:$O$72,,ΣτήληΕπιλεγμένηςΠεριόδου)","v":{"$error":"#VALUE!"}}]
[null,null,0,0,100,20,20,50,10,10,75,15,15,15,{"$f":"SUM(C51:N51)","v":330},{"$f":"INDEX($C51:$O51,,ΣτήληΕπιλεγμένηςΠεριόδου)/INDEX($C$72:$O$72,,ΣτήληΕπιλεγμένηςΠεριόδου)","v":{"$error":"#VALUE!"}}]
[]
["Εισαγάγετε ή τροποποιήστε ένα στοιχείο εξόδων στο κελί δεξιά και τα μηνιαία ποσά στα κελιά C53 έως N57. Το ετήσιο ποσό υπολογίζεται αυτόματα και εμφανίζεται στα κελιά Ο53 έως Ο57 και το ποσοστό αύξησης στα κελιά Ρ53 έως Ρ57. Το γράφημα sparkline ενημερώνεται αυτόματα στο κελί Q53. Η επόμενη οδηγία βρίσκεται στο κελί A59.","Μετακινήσεις",{"$f":"SUM(C54:C57)","v":224},174,174,219,174,174,274,219,174,174,224,269,{"$f":"SUM(C53:N53)","v":{"v":2473,"d":"2,473"}},{"$f":"INDEX($C53:$O53,,ΣτήληΕπιλεγμένηςΠεριόδου)/INDEX($C$72:$O$72,,ΣτήληΕπιλεγμένηςΠεριόδου)","v":{"$error":"#VALUE!"}}]
[null,null,30,30,30,75,30,30,30,75,30,30,30,75,{"$f":"SUM(C54:N54)","v":495},{"$f":"INDEX($C54:$O54,,ΣτήληΕπιλεγμένηςΠεριόδου)/INDEX($C$72:$O$72,,ΣτήληΕπιλεγμένηςΠεριόδου)","v":{"$error":"#VALUE!"}}]
[null,null,129,129,129,129,129,129,129,129,129,129,129,129,{"$f":"SUM(C55:N55)","v":{"v":1548,"d":"1,548"}},{"$f":"INDEX($C55:$O55,,ΣτήληΕπιλεγμένηςΠεριόδου)/INDEX($C$72:$O$72,,ΣτήληΕπιλεγμένηςΠεριόδου)","v":{"$error":"#VALUE!"}}]
[null,null,15,15,15,15,15,15,15,15,15,15,15,15,{"$f":"SUM(C56:N56)","v":180},{"$f":"INDEX($C56:$O56,,ΣτήληΕπιλεγμένηςΠεριόδου)/INDEX($C$72:$O$72,,ΣτήληΕπιλεγμένηςΠεριόδου)","v":{"$error":"#VALUE!"}}]
[null,null,50,0,0,0,0,0,100,0,0,0,50,50,{"$f":"SUM(C57:N57)","v":250},{"$f":"INDEX($C57:$O57,,ΣτήληΕπιλεγμένηςΠεριόδου)/INDEX($C$72:$O$72,,ΣτήληΕπιλεγμένηςΠεριόδου)","v":{"$error":"#VALUE!"}}]
[]
["Εισαγάγετε ή τροποποιήστε ένα στοιχείο εξόδων στο κελί δεξιά και τα μηνιαία ποσά στα κελιά C59 έως N65. Το ετήσιο ποσό υπολογίζεται αυτόματα και εμφανίζεται στα κελιά Ο59 έως Ο65 και το ποσοστό αύξησης στα κελιά Ρ59 έως Ρ65. Το γράφημα sparkline ενημερώνεται αυτόματα στο κελί Q59. Η επόμενη οδηγία βρίσκεται στο κελί A67.","Διακριτικές δαπάνες",{"$f":"SUM(C60:C65)","v":69},69,169,369,419,444,419,419,394,394,419,469,{"$f":"SUM(C59:N59)","v":{"v":4053,"d":"4,053"}},{"$f":"INDEX($C59:$O59,,ΣτήληΕπιλεγμένηςΠεριόδου)/INDEX($C$72:$O$72,,ΣτήληΕπιλεγμένηςΠεριόδου)","v":{"$error":"#VALUE!"}}]
[null,null,0,0,0,50,100,100,100,100,75,75,100,100,800,{"$f":"INDEX($C60:$O60,,ΣτήληΕπιλεγμένηςΠεριόδου)/INDEX($C$72:$O$72,,ΣτήληΕπιλεγμένηςΠεριόδου)","v":{"$error":"#VALUE!"}}]
[null,null,69,69,69,69,69,69,69,69,69,69,69,69,828,{"$f":"INDEX($C61:$O61,,ΣτήληΕπιλεγμένηςΠεριόδου)/INDEX($C$72:$O$72,,ΣτήληΕπιλεγμένηςΠεριόδου)","v":{"$error":"#VALUE!"}}]
[null,null,0,0,0,0,0,25,0,0,0,0,0,50,75,{"$f":"INDEX($C62:$O62,,ΣτήληΕπιλεγμένηςΠεριόδου)/INDEX($C$72:$O$72,,ΣτήληΕπιλεγμένηςΠεριόδου)","v":{"$error":"#VALUE!"}}]
[null,null,0,0,100,100,100,100,100,100,100,100,100,100,{"v":1000,"d":"1,000"},{"$f":"INDEX($C63:$O63,,ΣτήληΕπιλεγμένηςΠεριόδου)/INDEX($C$72:$O$72,,ΣτήληΕπιλεγμένηςΠεριόδου)","v":{"$error":"#VALUE!"}}]
[null,null,0,0,0,50,50,50,50,50,50,50,50,50,450,{"$f":"INDEX($C64:$O64,,ΣτήληΕπιλεγμένηςΠεριόδου)/INDEX($C$72:$O$72,,ΣτήληΕπιλεγμένηςΠεριόδου)","v":{"$error":"#VALUE!"}}]
[null,null,0,0,0,100,100,100,100,100,100,100,100,100,900,{"$f":"INDEX($C65:$O65,,ΣτήληΕπιλεγμένηςΠεριόδου)/INDEX($C$72:$O$72,,ΣτήληΕπιλεγμένηςΠεριόδου)","v":{"$error":"#VALUE!"}}]
[]
["Εισαγάγετε ή τροποποιήστε ένα στοιχείο εξόδων στο κελί δεξιά και τα μηνιαία ποσά στα κελιά C67 έως N70. Το ετήσιο ποσό υπολογίζεται αυτόματα και εμφανίζεται στα κελιά Ο67 έως Ο70 και το ποσοστό αύξησης στα κελιά Ρ67 έως Ρ70. Το γράφημα sparkline ενημερώνεται αυτόματα στο κελί Q67. Η επόμενη οδηγία βρίσκεται στο κελί A72.","Άλλα έξοδα",{"$f":"SUM(C68:C70)","v":198},{"$f":"SUM(D68:D70)","v":198},250,253,243,238,233,258,263,268,268,268,{"$f":"SUM(C67:N67)","v":{"v":2938,"d":"2,938"}},{"$f":"INDEX($C67:$O67,,ΣτήληΕπιλεγμένηςΠεριόδου)/INDEX($C$72:$O$72,,ΣτήληΕπιλεγμένηςΠεριόδου)","v":{"$error":"#VALUE!"}}]
[null,null,123,123,123,123,123,123,123,123,123,123,123,123,{"$f":"SUM(C68:N68)","v":{"v":1476,"d":"1,476"}},{"$f":"INDEX($C68:$O68,,ΣτήληΕπιλεγμένηςΠεριόδου)/INDEX($C$72:$O$72,,ΣτήληΕπιλεγμένηςΠεριόδου)","v":{"$error":"#VALUE!"}}]
[null,null,0,0,52,55,45,40,35,60,65,70,70,70,{"$f":"SUM(C69:N69)","v":562},{"$f":"INDEX($C69:$O69,,ΣτήληΕπιλεγμένηςΠεριόδου)/INDEX($C$72:$O$72,,ΣτήληΕπιλεγμένηςΠεριόδου)","v":{"$error":"#VALUE!"}}]
[null,null,75,75,75,75,75,75,75,75,75,75,75,75,{"$f":"SUM(C70:N70)","v":900},{"$f":"INDEX($C70:$O70,,ΣτήληΕπιλεγμένηςΠεριόδου)/INDEX($C$72:$O$72,,ΣτήληΕπιλεγμένηςΠεριόδου)","v":{"$error":"#VALUE!"}}]
[]
["Η ετικέτα \"Συνολικά έξοδα\" βρίσκεται στο κελί στα δεξιά. Τα συνολικά έξοδα για κάθε μήνα υπολογίζονται αυτόματα και εμφανίζονται στα κελιά C72 έως N72, τα ετήσια έξοδα στο κελί O72 και το ποσοστό αύξησης στο κελί P72. Το γράφημα sparkline ενημερώνεται αυτόματα στο κελί Q72.","ΣΥΝΟΛΙΚΑ ΕΞΟΔΑ",{"$f":"SUM(C40,C45,C49,C53,C59,C67)","v":{"v":1056,"d":"1,056"}},{"v":1006,"d":"1,006"},{"v":2233,"d":"2,233"},{"v":1426,"d":"1,426"},{"v":1421,"d":"1,421"},{"v":2396,"d":"2,396"},{"v":1501,"d":"1,501"},{"v":1471,"d":"1,471"},{"v":2446,"d":"2,446"},{"v":1416,"d":"1,416"},{"v":1491,"d":"1,491"},{"v":1586,"d":"1,586"},{"$f":"SUM(C72:N72)","v":{"v":19449,"d":"19,449"}},{"$f":"INDEX($C72:$O72,,ΣτήληΕπιλεγμένηςΠεριόδου)/INDEX($C$72:$O$72,,ΣτήληΕπιλεγμένηςΠεριόδου)","v":{"$error":"#VALUE!"}}]

{"sheet":"υπολογ_γραφήματος","index":2,"n_rows":23,"n_cols":16,"rows_kept":23,"hidden":true}
["*** Αυτό το φύλλο θα πρέπει να παραμείνει κρυφό.***"]
[]
[{"$nulls":3},{"$f":"IFERROR(LOWER(TEXT(VALUE(ΕπιλεγμένηΠερίοδος&\" 1\"),\"μμμμ\")),\"ετοσ\")","v":"ετοσ"}]
[]
[{"$nulls":3},"Περιεχόμενο δυναμικού γραφήματος"]
[{"$nulls":3},{"$f":"\"έσοδα \"&D3&\":\"","v":"έσοδα ετοσ:"},null,{"$f":"TEXT(INDEX('Μηνιαίος φοιτητ. προϋπολογισμός'!$C$37:$O$37,,ΣτήληΕπιλεγμένηςΠεριόδου),\"#.### €\")","v":{"$error":"#VALUE!"}}]
[{"$nulls":3},{"$f":"\"έξοδα \"&D3&\":\"","v":"έξοδα ετοσ:"},null,{"$f":"TEXT(INDEX('Μηνιαίος φοιτητ. προϋπολογισμός'!$C$72:$O$72,,ΣτήληΕπιλεγμένηςΠεριόδου),\"#.### €\")","v":{"$error":"#VALUE!"}}]
[{"$nulls":3},{"$f":"\"Ταμειακή ροή \"&D3&\":\"","v":"Ταμειακή ροή ετοσ:"},{"$f":"INDEX('Μηνιαίος φοιτητ. προϋπολογισμός'!C28:O28,ΤιμήΓραμμήςΚύλισης)","v":169},{"$f":"TEXT(E8,\"#.### €\")","v":"169 €"}]
[]
[]
[]
[{"$nulls":3},{"$f":"LOWER('Μηνιαίος φοιτητ. προϋπολογισμός'!C27)","v":{"$error":"#VALUE!"}},{"$f":"LOWER('Μηνιαίος φοιτητ. προϋπολογισμός'!D27)","v":{"$error":"#VALUE!"}},{"$f":"LOWER('Μηνιαίος φοιτητ. προϋπολογισμός'!E27)","v":{"$error":"#VALUE!"}},{"$f":"LOWER('Μηνιαίος φοιτητ. προϋπολογισμός'!F27)","v":{"$error":"#VALUE!"}},{"$f":"LOWER('Μηνιαίος φοιτητ. προϋπολογισμός'!G27)","v":{"$error":"#VALUE!"}},{"$f":"LOWER('Μηνιαίος φοιτητ. προϋπολογισμός'!H27)","v":{"$error":"#VALUE!"}},{"$f":"LOWER('Μηνιαίος φοιτητ. προϋπολογισμός'!I27)","v":{"$error":"#VALUE!"}},{"$f":"LOWER('Μηνιαίος φοιτητ. προϋπολογισμός'!J27)","v":{"$error":"#VALUE!"}},{"$f":"LOWER('Μηνιαίος φοιτητ. προϋπολογισμός'!K27)","v":{"$error":"#VALUE!"}},{"$f":"LOWER('Μηνιαίος φοιτητ. προϋπολογισμός'!L27)","v":{"$error":"#VALUE!"}},{"$f":"LOWER('Μηνιαίος φοιτητ. προϋπολογισμός'!M27)","v":{"$error":"#VALUE!"}},{"$f":"LOWER('Μηνιαίος φοιτητ. προϋπολογισμός'!N27)","v":{"$error":"#VALUE!"}},{"$f":"LOWER('Μηνιαίος φοιτητ. προϋπολογισμός'!O27)","v":"ετος  "}]
[null,null,"Τιμή γραμμή κύλισης: ",1]
[null,null,"Γράφημα ταμειακής ροής: ",{"$f":"IF(ΕπιλεγμένηΠερίοδος='Μηνιαίος φοιτητ. προϋπολογισμός'!C$31,IF('Μηνιαίος φοιτητ. προϋπολογισμός'!$C$28:$O$28>=0,'Μηνιαίος φοιτητ. προϋπολογισμός'!$C$28:$O$28,NA()),NA())","v":{"$error":"#VALUE!"}},{"$f":"IF(ΕπιλεγμένηΠερίοδος='Μηνιαίος φοιτητ. προϋπολογισμός'!D$31,IF('Μηνιαίος φοιτητ. προϋπολογισμός'!$C$28:$O$28>=0,'Μηνιαίος φοιτητ. προϋπολογισμός'!$C$28:$O$28,NA()),NA())","v":{"$error":"#VALUE!"}},{"$f":"IF(ΕπιλεγμένηΠερίοδος='Μηνιαίος φοιτητ. προϋπολογισμός'!E$31,IF('Μηνιαίος φοιτητ. προϋπολογισμός'!$C$28:$O$28>=0,'Μηνιαίος φοιτητ. προϋπολογισμός'!$C$28:$O$28,NA()),NA())","v":{"$error":"#VALUE!"}},{"$f":"IF(ΕπιλεγμένηΠερίοδος='Μηνιαίος φοιτητ. προϋπολογισμός'!F$31,IF('Μηνιαίος φοιτητ. προϋπολογισμός'!$C$28:$O$28>=0,'Μηνιαίος φοιτητ. προϋπολογισμός'!$C$28:$O$28,NA()),NA())","v":{"$error":"#VALUE!"}},{"$f":"IF(ΕπιλεγμένηΠερίοδος='Μηνιαίος φοιτητ. προϋπολογισμός'!G$31,IF('Μηνιαίος φοιτητ. προϋπολογισμός'!$C$28:$O$28>=0,'Μηνιαίος φοιτητ. προϋπολογισμός'!$C$28:$O$28,NA()),NA())","v":{"$error":"#VALUE!"}},{"$f":"IF(ΕπιλεγμένηΠερίοδος='Μηνιαίος φοιτητ. προϋπολογισμός'!H$31,IF('Μηνιαίος φοιτητ. προϋπολογισμός'!$C$28:$O$28>=0,'Μηνιαίος φοιτητ. προϋπολογισμός'!$C$28:$O$28,NA()),NA())","v":{"$error":"#VALUE!"}},{"$f":"IF(ΕπιλεγμένηΠερίοδος='Μηνιαίος φοιτητ. προϋπολογισμός'!I$31,IF('Μηνιαίος φοιτητ. προϋπολογισμός'!$C$28:$O$28>=0,'Μηνιαίος φοιτητ. προϋπολογισμός'!$C$28:$O$28,NA()),NA())","v":{"$error":"#VALUE!"}},{"$f":"IF(ΕπιλεγμένηΠερίοδος='Μηνιαίος φοιτητ. προϋπολογισμός'!J$31,IF('Μηνιαίος φοιτητ. προϋπολογισμός'!$C$28:$O$28>=0,'Μηνιαίος φοιτητ. προϋπολογισμός'!$C$28:$O$28,NA()),NA())","v":{"$error":"#VALUE!"}},{"$f":"IF(ΕπιλεγμένηΠερίοδος='Μηνιαίος φοιτητ. προϋπολογισμός'!K$31,IF('Μηνιαίος φοιτητ. προϋπολογισμός'!$C$28:$O$28>=0,'Μηνιαίος φοιτητ. προϋπολογισμός'!$C$28:$O$28,NA()),NA())","v":{"$error":"#VALUE!"}},{"$f":"IF(ΕπιλεγμένηΠερίοδος='Μηνιαίος φοιτητ. προϋπολογισμός'!L$31,IF('Μηνιαίος φοιτητ. προϋπολογισμός'!$C$28:$O$28>=0,'Μηνιαίος φοιτητ. προϋπολογισμός'!$C$28:$O$28,NA()),NA())","v":{"$error":"#VALUE!"}},{"$f":"IF(ΕπιλεγμένηΠερίοδος='Μηνιαίος φοιτητ. προϋπολογισμός'!M$31,IF('Μηνιαίος φοιτητ. προϋπολογισμός'!$C$28:$O$28>=0,'Μηνιαίος φοιτητ. προϋπολογισμός'!$C$28:$O$28,NA()),NA())","v":{"$error":"#VALUE!"}},{"$f":"IF(ΕπιλεγμένηΠερίοδος='Μηνιαίος φοιτητ. προϋπολογισμός'!N$31,IF('Μηνιαίος φοιτητ. προϋπολογισμός'!$C$28:$O$28>=0,'Μηνιαίος φοιτητ. προϋπολογισμός'!$C$28:$O$28,NA()),NA())","v":{"$error":"#VALUE!"}},{"$f":"IF(ΕπιλεγμένηΠερίοδος='Μηνιαίος φοιτητ. προϋπολογισμός'!O$31,IF('Μηνιαίος φοιτητ. προϋπολογισμός'!$C$28:$O$28>=0,'Μηνιαίος φοιτητ. προϋπολογισμός'!$C$28:$O$28,NA()),NA())","v":{"$error":"#VALUE!"}}]
[null,null,"Άθροισμα: ",{"$f":"IF(ΕπιλεγμένηΠερίοδος='Μηνιαίος φοιτητ. προϋπολογισμός'!C$31,IF('Μηνιαίος φοιτητ. προϋπολογισμός'!$C$28:$O$28<0,'Μηνιαίος φοιτητ. προϋπολογισμός'!$C$28:$O$28,NA()),NA())","v":{"$error":"#VALUE!"}},{"$f":"IF(ΕπιλεγμένηΠερίοδος='Μηνιαίος φοιτητ. προϋπολογισμός'!D$31,IF('Μηνιαίος φοιτητ. προϋπολογισμός'!$C$28:$O$28<0,'Μηνιαίος φοιτητ. προϋπολογισμός'!$C$28:$O$28,NA()),NA())","v":{"$error":"#VALUE!"}},{"$f":"IF(ΕπιλεγμένηΠερίοδος='Μηνιαίος φοιτητ. προϋπολογισμός'!E$31,IF('Μηνιαίος φοιτητ. προϋπολογισμός'!$C$28:$O$28<0,'Μηνιαίος φοιτητ. προϋπολογισμός'!$C$28:$O$28,NA()),NA())","v":{"$error":"#VALUE!"}},{"$f":"IF(ΕπιλεγμένηΠερίοδος='Μηνιαίος φοιτητ. προϋπολογισμός'!F$31,IF('Μηνιαίος φοιτητ. προϋπολογισμός'!$C$28:$O$28<0,'Μηνιαίος φοιτητ. προϋπολογισμός'!$C$28:$O$28,NA()),NA())","v":{"$error":"#VALUE!"}},{"$f":"IF(ΕπιλεγμένηΠερίοδος='Μηνιαίος φοιτητ. προϋπολογισμός'!G$31,IF('Μηνιαίος φοιτητ. προϋπολογισμός'!$C$28:$O$28<0,'Μηνιαίος φοιτητ. προϋπολογισμός'!$C$28:$O$28,NA()),NA())","v":{"$error":"#VALUE!"}},{"$f":"IF(ΕπιλεγμένηΠερίοδος='Μηνιαίος φοιτητ. προϋπολογισμός'!H$31,IF('Μηνιαίος φοιτητ. προϋπολογισμός'!$C$28:$O$28<0,'Μηνιαίος φοιτητ. προϋπολογισμός'!$C$28:$O$28,NA()),NA())","v":{"$error":"#VALUE!"}},{"$f":"IF(ΕπιλεγμένηΠερίοδος='Μηνιαίος φοιτητ. προϋπολογισμός'!I$31,IF('Μηνιαίος φοιτητ. προϋπολογισμός'!$C$28:$O$28<0,'Μηνιαίος φοιτητ. προϋπολογισμός'!$C$28:$O$28,NA()),NA())","v":{"$error":"#VALUE!"}},{"$f":"IF(ΕπιλεγμένηΠερίοδος='Μηνιαίος φοιτητ. προϋπολογισμός'!J$31,IF('Μηνιαίος φοιτητ. προϋπολογισμός'!$C$28:$O$28<0,'Μηνιαίος φοιτητ. προϋπολογισμός'!$C$28:$O$28,NA()),NA())","v":{"$error":"#VALUE!"}},{"$f":"IF(ΕπιλεγμένηΠερίοδος='Μηνιαίος φοιτητ. προϋπολογισμός'!K$31,IF('Μηνιαίος φοιτητ. προϋπολογισμός'!$C$28:$O$28<0,'Μηνιαίος φοιτητ. προϋπολογισμός'!$C$28:$O$28,NA()),NA())","v":{"$error":"#VALUE!"}},{"$f":"IF(ΕπιλεγμένηΠερίοδος='Μηνιαίος φοιτητ. προϋπολογισμός'!L$31,IF('Μηνιαίος φοιτητ. προϋπολογισμός'!$C$28:$O$28<0,'Μηνιαίος φοιτητ. προϋπολογισμός'!$C$28:$O$28,NA()),NA())","v":{"$error":"#VALUE!"}},{"$f":"IF(ΕπιλεγμένηΠερίοδος='Μηνιαίος φοιτητ. προϋπολογισμός'!M$31,IF('Μηνιαίος φοιτητ. προϋπολογισμός'!$C$28:$O$28<0,'Μηνιαίος φοιτητ. προϋπολογισμός'!$C$28:$O$28,NA()),NA())","v":{"$error":"#VALUE!"}},{"$f":"IF(ΕπιλεγμένηΠερίοδος='Μηνιαίος φοιτητ. προϋπολογισμός'!N$31,IF('Μηνιαίος φοιτητ. προϋπολογισμός'!$C$28:$O$28<0,'Μηνιαίος φοιτητ. προϋπολογισμός'!$C$28:$O$28,NA()),NA())","v":{"$error":"#VALUE!"}},{"$f":"IF(ΕπιλεγμένηΠερίοδος='Μηνιαίος φοιτητ. προϋπολογισμός'!O$31,IF('Μηνιαίος φοιτητ. προϋπολογισμός'!$C$28:$O$28<0,'Μηνιαίος φοιτητ. προϋπολογισμός'!$C$28:$O$28,NA()),NA())","v":{"$error":"#VALUE!"}}]
[]
[]
[null,null,"ΔΕΔΟΜΕΝΑ ΓΡΑΦΗΜΑΤΟΣ ΕΣΟΔΩΝ"]
[null,null,"Οικονομική Βοήθεια (επιχορηγήσεις υποτροφίες, δάνεια) που δόθηκε σε εσάς",{"$f":"'Μηνιαίος φοιτητ. προϋπολογισμός'!P32","v":{"$error":"#VALUE!"}}]
[null,null,"Μισθοί μετά φόρων από εργασία",{"$f":"'Μηνιαίος φοιτητ. προϋπολογισμός'!P33","v":{"$error":"#VALUE!"}}]
[null,null,"Οικονομική βοήθεια από την οικογένεια",{"$f":"'Μηνιαίος φοιτητ. προϋπολογισμός'!P34","v":{"$error":"#VALUE!"}}]
[null,null,"Αναλήψεις από αποταμιεύσεις",{"$f":"'Μηνιαίος φοιτητ. προϋπολογισμός'!P35","v":{"$error":"#VALUE!"}}]
[null,null,"Άλλο (επίδομα διατροφής, κοινωνική αρωγή, δώρα κλπ.)",{"$f":"'Μηνιαίος φοιτητ. προϋπολογισμός'!P36","v":{"$error":"#VALUE!"}}]